bitfinex/quotes_ETHUSD_20241104
["timestamp","ask_amount","ask_price","bid_price","bid_amount"]
[1730762299063,4.891639,2395.7,2395.2,4.17491]
[1730762301794,0.717399,2395.7,2395.3,4.17483]
[1730762301965,4.891539,2395.7,2395.3,4.17483]
[1730762302287,4.891539,2395.7,2395.2,4.17499]
[1730762302596,0.10404891,2395.6,2395.2,4.17499]
[1730762302790,0.8112,2395.5,2395.1,4.17502]
[1730762302982,1.528599,2395.7,2395.2,4.17487]
[1730762303189,1.528599,2395.7,2395.3,4.1748]
[1730762303401,0.10404891,2395.6,2395.3,4.17476]
[1730762304270,0.10404891,2395.6,2395.3,3.871886]
[1730762305218,0.10404891,2395.6,2395.4,4.17465]
[1730762305372,4.17405,2395.8,2395.4,4.17465]
[1730762305704,0.10447037,2395.5,2395.4,4.17465]
[1730762305870,0.7747,2395.9,2395.5,4.17432]
[1730762306076,0.7747,2395.9,2395.6,4.17429]
[1730762306909,0.7747,2395.9,2395.1,4.97994]
[1730762307207,0.7747,2395.9,2395.2,0.98069278]
[1730762307409,0.7747,2395.9,2395.5,4.17434]
[1730762308598,0.7747,2395.9,2395.6,4.17431]
[1730762309280,0.7747,2395.9,2395.6,4.17421]
[1730762309913,0.7747,2395.9,2395.5,4.1744]
[1730762310123,0.7747,2395.9,2395.6,4.17429]
[1730762311027,1.7415392,2396.2,2395.7,4.17414]
[1730762311184,0.7583,2396.4,2396.2,4.17313]
[1730762311385,4.17354,2396.1,2395.6,4.17431]
[1730762311583,0.7583,2396.4,2395.6,4.17431]
[1730762311584,4.17335,2396.2,2395.6,4.17431]
[1730762311824,6.6728692,2396.4,2395.4,0.8117]
[1730762312023,6.6728692,2396.4,2395.8,4.17386]
[1730762312024,4.1731,2396.3,2395.8,4.17386]
[1730762312319,4.93133,2396.4,2395.9,4.1737]
[1730762312521,7.17319,2396.3,2395.8,4.17396]
[1730762313287,7.17319,2396.3,2395.9,4.17378]
[1730762314118,7.17319,2396.3,2395.8,4.17394]
[1730762314687,0.7583,2396.4,2395.5,4.17449]
[1730762314888,8.34645,2396.3,2395.8,4.17391]
[1730762315422,4.17333,2396.2,2395.8,4.17391]
[1730762316425,4.17408,2395.8,2395.3,4.17482]
[1730762316719,0.7795,2395.9,2395.5,8.34869]
[1730762317024,0.7795,2395.9,2395.5,8.34872]
[1730762317226,0.7795,2395.9,2395.5,4.17432]
[1730762317449,0.10533444,2395.8,2395.5,8.34872]
[1730762317727,0.10533444,2395.8,2395.6,4.1743]
[1730762318103,0.10533444,2395.8,2395.4,4.17465]
[1730762318311,0.10533444,2395.8,2395.5,4.17445]
[1730762318700,0.10533444,2395.8,2395.4,4.17464]
[1730762318897,5.45210974,2395.8,2395.3,8.34945]
[1730762319097,5.45210974,2395.8,2395.3,4.1747]
[1730762319560,5.45210974,2395.8,2395.3,8.34945]
[1730762319839,0.10533444,2395.8,2395.6,4.17422]
[1730762320042,5.9151092,2396.1,2395.6,4.17422]
[1730762320225,0.10533444,2395.7,2395.6,4.17422]
[1730762320405,4.1737,2396.0,2395.6,4.17422]
[1730762320750,4.1737,2396.0,2395.7,4.17406]
[1730762320751,0.10533444,2395.9,2395.7,4.17406]
[1730762322443,0.10533444,2395.9,2395.6,4.17422]
[1730762322631,0.10533444,2395.9,2395.7,4.17405]
[1730762323253,4.27913444,2395.9,2395.4,4.17456]
[1730762323616,0.10533444,2395.9,2395.6,4.17431]
[1730762324947,0.10533444,2395.9,2395.6,8.34854]
[1730762325312,0.10533444,2395.9,2395.6,4.17423]
[1730762326138,0.10533444,2395.9,2395.7,4.17413]
[1730762326841,0.10533444,2395.9,2395.8,4.17397]
[1730762327038,1.7415392,2396.1,2395.9,4.17379]
[1730762327556,0.10533444,2396.0,2395.9,4.17379]
[1730762328861,0.10533444,2396.0,2395.8,4.17395]
[1730762330172,0.10533444,2396.0,2395.7,4.17414]
[1730762330339,4.174,2395.8,2395.4,4.17465]
[1730762330662,4.17478,2395.4,2394.9,4.17537]
[1730762331266,0.85888447,2395.3,2394.9,4.17537]
[1730762331677,0.85888447,2395.3,2395.0,4.17526]
[1730762331985,0.10528447,2395.3,2395.1,4.17509]
[1730762332330,5.4951392,2395.6,2395.2,4.17501]
[1730762332528,0.10528447,2395.2,2395.1,4.17509]
[1730762332725,5.4951392,2395.6,2395.2,4.1749]
[1730762335570,5.9156892,2395.7,2395.3,4.17473]
[1730762335936,5.9156892,2395.7,2395.2,8.34981]
[1730762336345,1.7415392,2395.6,2395.2,8.34981]
[1730762336645,5.9156892,2395.7,2395.3,4.17483]
[1730762336847,1.7415392,2395.7,2395.3,4.17483]
[1730762337105,1.7415392,2395.7,2395.3,0.08349008]
[1730762337390,1.7415392,2395.7,2395.3,4.1748]
[1730762337536,1.7415392,2395.6,2395.3,4.1748]
[1730762338238,1.7415392,2395.6,2395.3,4.17474]
[1730762339275,1.7415392,2395.5,2395.3,4.17474]
[1730762340551,1.7415392,2395.5,2395.3,8.34948]
[1730762340746,1.7415392,2395.5,2395.4,4.17466]
[1730762340960,1.7415392,2395.6,2395.5,4.17449]
[1730762341185,1.7415392,2395.6,2395.4,5.0096]
[1730762341186,1.7415392,2395.6,2395.4,4.17466]
[1730762341494,1.7415392,2395.6,2395.4,8.34932]
[1730762342187,1.7415392,2395.6,2395.5,4.17449]
[1730762342863,3.00426153,2395.8,2395.6,4.17431]
[1730762343062,1.75076902,2395.8,2395.7,4.17414]
[1730762343265,1.75076902,2395.8,2395.6,5.00919]
[1730762343568,1.75076902,2395.8,2395.6,4.17423]
[1730762344087,1.75076902,2395.7,2395.6,4.17423]
[1730762344659,2.18844985,2395.9,2395.7,4.17414]
[1730762344988,1.75091946,2395.8,2395.7,4.17414]
[1730762346456,1.75091946,2395.8,2395.7,4.93614]
[1730762346894,1.75091946,2395.8,2395.7,5.847184]
[1730762347196,1.75091946,2395.9,2395.8,4.17397]
[1730762347558,1.85581119,2395.9,2395.8,4.17397]
[1730762348100,0.10489173,2395.9,2395.8,4.17397]
[1730762348303,0.10489173,2395.9,2395.8,5.084981]
[1730762348715,2.62619617,2396.4,2396.2,4.17327]
[1730762348716,1.75091946,2396.3,2396.2,4.17327]
[1730762349006,1.75091946,2396.5,2396.2,0.8047]
[1730762349218,1.75091946,2396.5,2396.4,4.17292]
[1730762349372,1.75091946,2396.7,2396.6,4.17257]
[1730762349556,1.75091946,2396.8,2396.7,4.1724]
[1730762349759,2.62619617,2397.1,2396.7,4.1724]
[1730762349760,1.75091946,2397.0,2396.8,4.17222]
[1730762349960,1.75091946,2397.2,2396.9,8.25208876]
[1730762350181,1.75091946,2397.1,2397.0,4.17176]
[1730762351462,1.75091946,2397.2,2397.1,4.1717]
[1730762351768,1.75091946,2397.2,2397.1,3.868489]
[1730762352802,1.75091946,2397.3,2397.2,4.17153]
[1730762353106,1.75091946,2397.3,2397.2,8.25156876]
[1730762353303,1.75091946,2397.3,2397.2,1.32600751]
[1730762353466,2.57551946,2397.3,2397.0,4.1718]
[1730762353983,2.57551946,2397.3,2397.1,4.1717]
[1730762354187,2.57551946,2397.3,2397.1,8.34316]
[1730762354392,1.75091946,2397.3,2397.2,4.17153]
[1730762355172,1.75091946,2397.3,2397.2,5.005839]
[1730762355374,1.75091946,2397.3,2397.2,5.806739]
[1730762357171,1.85274979,2397.3,2397.2,5.806739]
[1730762357570,1.85274979,2397.3,2397.2,12.97019907]
[1730762357795,4.32010568,2398.3,2398.1,4.16996]
[1730762358008,4.32010568,2398.3,2398.1,4.16987]
[1730762358308,4.32010568,2398.3,2397.9,4.08003876]
[1730762358490,4.32010568,2398.3,2398.2,4.16979]
[1730762358895,4.32010568,2398.3,2398.2,9.08380376]
[1730762359092,4.32010568,2398.3,2398.2,9.89740376]
[1730762359784,4.32010568,2398.3,2398.2,12.89740376]
[1730762359983,4.32010568,2398.3,2398.2,8.817365]
[1730762361296,5.04012329,2399.0,2398.9,4.16857]
[1730762361508,5.04012329,2399.0,2398.9,8.24860876]
[1730762361911,5.04012329,2399.0,2398.9,9.56745164]
[1730762362317,5.04012329,2399.0,2398.9,12.56745164]
[1730762362474,5.04012329,2399.0,2398.9,13.36535164]
[1730762364025,0.0594101,2399.4,2399.3,4.16788]
[1730762364224,0.0594101,2399.4,2399.3,5.001471]
[1730762364394,0.0594101,2399.4,2399.3,4.16788]
[1730762364594,0.16233268,2399.4,2399.2,4.16803]
[1730762364790,0.16233268,2399.4,2399.1,4.16813]
[1730762364791,0.0594101,2399.4,2399.1,4.16813]
[1730762364994,0.10292258,2399.3,2398.6,4.87793876]
[1730762365225,0.10292258,2399.3,2398.9,4.16848]
[1730762365424,0.10292258,2399.3,2399.1,4.16808]
[1730762365624,0.10292258,2399.3,2398.9,4.16844]
[1730762365993,0.10292258,2399.3,2398.9,8.33689]
[1730762366195,0.10292258,2399.3,2398.9,4.16844]
[1730762366619,0.7943,2399.2,2398.3,4.87793876]
[1730762366839,0.7943,2399.2,2398.5,4.16915]
[1730762366840,8.77488327,2399.2,2398.5,4.16915]
[1730762367171,8.77488327,2399.2,2398.6,4.169]
[1730762367172,0.10337196,2399.1,2398.6,4.169]
[1730762367295,0.10337196,2399.1,2398.5,4.16915]
[1730762367494,0.10337196,2399.1,2398.8,4.16866]
[1730762367738,0.10337196,2399.1,2398.9,4.16845]
[1730762367905,0.10337196,2399.1,2399.0,4.1684]
[1730762368109,0.0594101,2399.4,2399.2,4.168]
[1730762368318,0.0594101,2399.4,2399.0,4.1684]
[1730762368319,0.0594101,2399.4,2399.1,4.16822]
[1730762368524,0.0594101,2399.4,2399.0,4.1684]
[1730762369107,0.0594101,2399.4,2399.1,4.16813]
[1730762369309,0.0594101,2399.4,2399.2,4.16802]
[1730762369509,0.0594101,2399.4,2399.2,4.1679]
[1730762370397,0.0594101,2399.4,2399.3,4.16788]
[1730762370742,0.0594101,2399.4,2399.2,8.33586]
[1730762370975,0.0594101,2399.4,2399.3,4.16788]
[1730762371867,0.0594101,2399.4,2399.3,5.001458]
[1730762373339,0.0594101,2399.4,2399.2,4.9658]
[1730762373340,0.0594101,2399.4,2399.2,4.16795]
[1730762373544,0.0594101,2399.4,2398.9,0.416845]
[1730762373545,0.0594101,2399.4,2399.3,4.25123474]
[1730762373847,0.0594101,2399.4,2399.3,4.16788]
[1730762376191,0.16245397,2399.4,2399.3,4.16788]
[1730762376398,0.0594101,2399.4,2399.3,4.16788]
[1730762376698,0.0594101,2399.4,2399.3,5.08126]
[1730762376863,0.16245397,2399.4,2399.3,5.08126]
[1730762377411,0.0594101,2399.4,2399.3,5.08126]
[1730762377992,0.16291047,2399.4,2398.9,5.29478376]
[1730762378193,0.7943,2399.3,2399.0,4.1683]
[1730762378401,0.0594101,2399.4,2399.2,4.16803]
[1730762379111,0.0594101,2399.4,2399.3,4.16788]
[1730762379418,0.7943,2399.3,2398.6,4.16894]
[1730762379570,0.7943,2399.3,2398.9,4.16855]
[1730762379911,0.0594101,2399.4,2399.2,4.16805]
[1730762380071,0.0594101,2399.4,2399.1,4.16807]
[1730762380405,0.0594101,2399.4,2399.2,1.12543566]
[1730762380614,0.0594101,2399.4,2399.3,5.29331566]
[1730762381806,0.0594101,2399.4,2399.3,1.12543566]
[1730762382313,0.0594101,2399.4,2399.3,5.70112216]
[1730762382603,0.0594101,2399.4,2399.3,1.12698902]
[1730762383213,0.0594101,2399.4,2399.3,6.40706343]
[1730762383512,0.0594101,2399.4,2399.3,6.73207792]
[1730762383720,0.0594101,2399.4,2399.3,6.81542317]
[1730762384016,0.7708,2399.8,2399.3,2.64754317]
[1730762384218,0.7708,2399.8,2399.6,4.57562936]
[1730762384376,0.7708,2399.8,2399.7,1.12698902]
[1730762384581,0.7708,2399.8,2399.7,1.53535838]
[1730762384825,0.7708,2399.8,2399.7,1.12698902]
[1730762385003,0.7708,2399.8,2399.4,4.16761]
[1730762385193,0.7708,2399.8,2399.7,0.40891582]
[1730762385505,0.7708,2400.0,2399.7,1.53741292]
[1730762385833,8.33382,2399.9,2399.8,1.1284971]
[1730762386032,4.16684,2399.9,2399.8,1.12957558]
[1730762386407,4.16684,2399.9,2399.8,1.53888219]
[1730762386612,4.16684,2399.9,2399.8,1.12957558]
[1730762386797,4.93749,2400.0,2399.8,1.12957558]
[1730762387128,4.93749,2400.0,2399.9,1.12957558]
[1730762387423,4.93749,2400.0,2399.9,1.53888219]
[1730762388201,4.93749,2400.0,2399.9,1.12957558]
[1730762388614,6.697891,2400.0,2399.9,1.12957558]
[1730762388817,9.697891,2400.0,2399.9,1.12957558]
[1730762389403,4.16726,2399.7,2399.6,0.41101958]
[1730762389630,4.16726,2399.7,2399.6,1.05214366]
[1730762391631,4.16726,2399.7,2399.2,4.16791]
[1730762391833,4.16726,2399.7,2399.6,0.41129795]
[1730762392002,4.16726,2399.7,2399.6,1.05284337]
[1730762392328,4.27107265,2399.7,2399.6,1.05284337]
[1730762393029,0.10389265,2399.7,2399.6,1.05284482]
[1730762393334,4.16703,2399.8,2399.6,0.80601686]
[1730762393542,4.27117265,2399.7,2399.6,0.4112547]
[1730762393698,4.27117265,2399.7,2399.6,1.05272239]
[1730762394416,0.10389265,2399.7,2399.6,1.05272239]
[1730762394800,8.33421,2399.8,2399.6,1.05272239]
[1730762395001,4.27107265,2399.7,2399.6,0.4112547]
[1730762395197,4.27107265,2399.7,2399.6,1.05274449]
[1730762395923,0.10389265,2399.7,2399.6,0.64148979]
[1730762396125,4.16703,2399.8,2399.6,0.64148979]
[1730762396324,4.16703,2399.8,2399.7,1.05281107]
[1730762396532,4.16703,2399.8,2399.3,4.25110861]
[1730762396706,4.16703,2399.8,2399.7,0.41131741]
[1730762397037,4.16703,2399.8,2399.7,1.05289318]
[1730762397543,4.16703,2399.8,2399.7,0.64157577]
[1730762401816,8.50843,2399.8,2399.7,0.64157577]
[1730762402179,8.50843,2399.8,2399.7,0.24675341]
[1730762402449,8.50843,2399.8,2399.1,0.83966188]
[1730762402450,4.97197,2399.6,2399.1,0.83966188]
[1730762402648,4.97197,2399.6,2399.2,0.64203946]
[1730762402850,4.97197,2399.6,2399.3,0.64203946]
[1730762403014,4.97197,2399.6,2399.4,0.64203946]
[1730762403218,4.97197,2399.6,2399.1,0.7563]
[1730762403446,4.97197,2399.6,2399.2,0.39661202]
[1730762403447,0.8045,2399.6,2399.2,0.39661202]
[1730762403641,4.16785,2399.4,2399.3,0.64450265]
[1730762403842,4.16785,2399.4,2399.3,0.24789063]
[1730762404117,4.16861,2398.9,2398.5,4.16926]
[1730762404325,4.16861,2398.9,2398.6,0.6445501]
[1730762404326,8.33731,2398.9,2398.6,0.6445501]
[1730762404514,4.16861,2398.9,2398.7,0.6445501]
[1730762404732,4.16861,2398.9,2398.8,0.6445501]
[1730762404963,4.98272,2399.0,2398.8,0.6445501]
[1730762405165,4.16807,2399.2,2398.9,0.24789743]
[1730762405330,4.16807,2399.2,2399.0,0.24789743]
[1730762405662,4.16807,2399.2,2398.9,0.44165674]
[1730762405817,4.16807,2399.2,2399.0,0.24777328]
[1730762406020,4.16807,2399.2,2398.9,0.44165674]
[1730762406650,4.1684,2399.0,2398.5,4.1691]
[1730762406818,4.1684,2399.0,2398.6,0.64402922]
[1730762407031,4.1684,2399.0,2398.7,0.64402922]
[1730762407227,4.1684,2399.0,2398.8,0.24769709]
[1730762407443,4.1684,2399.0,2398.5,0.39624998]
[1730762407444,5.0588814,2398.9,2398.5,0.39624998]
[1730762407643,0.8901714,2398.9,2398.6,0.24765185]
[1730762407845,0.8901714,2398.9,2398.7,0.24765185]
[1730762408018,0.8901714,2398.9,2398.5,5.12588]
[1730762408219,0.8901714,2398.9,2398.6,0.24764421]
[1730762408460,0.8901714,2398.9,2398.5,5.12588]
[1730762408663,0.8901714,2398.9,2398.6,9.59832783]
[1730762408664,0.1037714,2398.9,2398.6,9.59832783]
[1730762408867,0.1037714,2398.9,2398.6,5.181731]
[1730762409064,4.92371,2399.1,2398.6,5.181731]
[1730762409270,4.92371,2399.1,2398.6,1.012731]
[1730762409271,0.1037714,2398.8,2398.6,1.012731]
[1730762409453,4.1685,2399.0,2398.6,1.012731]
[1730762409778,0.1037714,2398.9,2398.6,1.012731]
[1730762409972,0.1037714,2398.9,2398.7,0.5181981]
[1730762410174,2.18489346,2399.3,2398.9,0.765]
[1730762410329,2.18420106,2399.5,2399.1,4.16814]
[1730762410650,4.95235,2399.6,2399.1,4.16806]
[1730762410651,7.13655106,2399.6,2399.1,4.16806]
[1730762410851,2.96910106,2399.6,2399.3,4.16782]
[1730762411055,2.18420106,2399.7,2399.4,4.16755]
[1730762411442,2.18420106,2399.7,2399.2,8.33583]
[1730762411667,6.35139106,2399.7,2399.2,4.16788]
[1730762411856,2.18420106,2399.7,2399.3,4.16786]
[1730762412065,2.18420106,2399.7,2399.4,5.001194]
[1730762412302,2.18420106,2399.7,2399.4,4.16762]
[1730762412984,2.18420106,2399.7,2399.3,0.7931]
[1730762413277,6.35142106,2399.7,2399.3,0.7931]
[1730762413576,2.18420106,2399.7,2399.3,4.16784]
[1730762413738,2.18420106,2399.7,2399.4,0.833578]
[1730762413937,2.18457254,2399.7,2399.4,0.833578]
[1730762414129,2.18457254,2399.6,2399.4,0.833578]
[1730762414327,2.18457254,2399.6,2399.4,5.001268]
[1730762414580,2.18457254,2399.7,2399.4,5.001268]
[1730762414866,4.16703,2399.8,2399.4,5.001268]
[1730762415164,2.18452453,2399.8,2399.4,5.001178]
[1730762415535,6.35154453,2399.8,2399.4,5.001178]
[1730762416077,2.18452453,2399.7,2399.4,5.001178]
[1730762416671,2.18452453,2399.8,2399.4,9.168778]
[1730762416871,2.18452453,2399.8,2399.4,5.001178]
[1730762417183,2.18452453,2399.8,2399.5,4.16743]
[1730762417477,2.18452453,2399.8,2399.6,4.16726]
[1730762417679,2.18452453,2399.9,2399.5,5.85302526]
[1730762417885,2.18452453,2399.9,2399.6,4.16736]
[1730762418691,0.7659,2399.7,2399.1,9.09665]
[1730762418988,6.35188453,2399.6,2398.9,4.16847]
[1730762419144,6.35188453,2399.6,2399.1,4.16822]
[1730762419545,6.35189488,2399.6,2399.1,4.16822]
[1730762419979,6.35189488,2399.6,2399.1,4.16814]
[1730762420183,4.16754,2399.5,2399.1,4.16814]
[1730762420383,4.16754,2399.5,2399.0,4.16837]
[1730762420384,6.35207488,2399.5,2399.0,4.16837]
[1730762420639,4.16736,2399.6,2399.1,4.16821]
[1730762420640,10.51933488,2399.6,2399.1,4.16821]
[1730762421084,6.35209488,2399.5,2399.0,5.078107]
[1730762421450,2.18453488,2399.5,2399.1,4.16817]
[1730762422049,2.18453488,2399.6,2399.2,4.16795]
[1730762422467,0.10354316,2399.5,2399.1,4.16813]
[1730762422745,0.10354316,2399.5,2399.1,4.6759147]
[1730762422945,4.27109316,2399.5,2399.1,0.5077847]
[1730762423280,4.27109316,2399.5,2398.9,4.16843]
[1730762423281,6.45562804,2399.5,2398.9,4.16843]
[1730762423584,6.45562804,2399.5,2398.8,0.7604]
[1730762423754,4.16778,2399.4,2398.9,4.16857]
[1730762423959,4.27148723,2399.4,2398.9,4.16848]
[1730762424879,4.27148723,2399.4,2398.9,4.16843]
[1730762424880,6.45623707,2399.4,2398.9,4.16843]
[1730762425084,2.28845707,2399.4,2399.0,4.16839]
[1730762425251,0.10370723,2399.4,2399.1,0.08335521]
[1730762425450,0.10370723,2399.4,2399.0,4.16839]
[1730762425758,0.10370723,2399.4,2399.1,4.16812]
[1730762426347,6.35219984,2399.6,2399.1,4.16812]
[1730762426555,0.10352893,2399.3,2399.1,4.16812]
[1730762426881,2.18474984,2399.5,2399.1,4.16812]
[1730762427043,0.10352893,2399.2,2399.1,4.16812]
[1730762427248,2.18474984,2399.5,2399.1,5.12330933]
[1730762427450,0.10352893,2399.2,2399.0,4.72684121]
[1730762427698,2.18474984,2399.6,2399.3,4.16786]
[1730762427849,2.95064984,2399.7,2399.3,4.16786]
[1730762428051,2.95064984,2399.7,2399.3,4.25120983]
[1730762428287,2.95064984,2399.7,2399.4,4.16769]
[1730762428585,0.8136,2399.9,2399.5,4.16752]
[1730762428747,0.8136,2399.9,2399.4,5.080003]
[1730762428748,2.99790357,2399.9,2399.6,4.16735]
[1730762429170,2.99790357,2399.9,2399.6,8.33463]
[1730762429171,2.18430357,2399.9,2399.6,8.33463]
[1730762429368,2.18430357,2400.0,2399.6,8.33463]
[1730762429693,2.18430357,2400.0,2399.9,4.16684]
[1730762429854,8.037725,2400.4,2399.9,4.16684]
[1730762429855,2.18430357,2400.3,2399.9,4.16684]
[1730762430186,2.18430357,2400.3,2399.9,4.16673]
[1730762430681,6.35071357,2400.2,2399.7,4.16701]
[1730762430895,6.35071357,2400.2,2399.6,1.7120943]
[1730762430896,4.16651,2400.1,2399.6,5.0920143]
[1730762431103,6.35081357,2400.1,2399.6,5.0920143]
[1730762431245,10.51741357,2400.1,2399.6,5.0920143]
[1730762431448,6.35081357,2400.1,2399.6,9.2592743]
[1730762431652,6.35081357,2400.1,2399.6,5.0919543]
[1730762431868,6.35081357,2400.1,2399.6,9.2592243]
[1730762432069,6.35081357,2400.1,2399.6,5.0919543]
[1730762432273,6.35081357,2400.1,2399.4,1.699713]
[1730762432274,0.8136,2400.0,2399.5,4.16752]
[1730762432488,4.16691,2399.9,2399.5,4.16752]
[1730762432783,2.99790357,2400.0,2399.5,8.33495]
[1730762432784,7.16456357,2400.0,2399.5,8.33495]
[1730762432985,2.18430357,2400.0,2399.7,4.16709]
[1730762433151,6.3497428,2400.2,2399.8,4.16699]
[1730762433351,2.1834228,2400.2,2399.9,4.16675]
[1730762433559,2.9970228,2400.3,2399.9,4.16675]
[1730762433780,7.1632928,2400.3,2399.8,4.167]
[1730762434183,7.1632928,2400.3,2399.8,8.334]
[1730762434495,7.1632928,2400.3,2399.8,8.33393]
[1730762434654,7.1632928,2400.3,2399.8,4.16693]
[1730762435196,7.1632928,2400.3,2399.9,4.1668]
[1730762435371,4.97987,2400.3,2399.9,4.1668]
[1730762435566,7.1632928,2400.3,2399.9,4.1668]
[1730762437151,0.8136,2400.3,2400.0,4.16664]
[1730762437401,0.15574728,2400.2,2400.1,4.16648]
[1730762437595,5.99533417,2400.5,2400.1,4.16648]
[1730762437894,0.15574728,2400.2,2400.1,4.16648]
[1730762438192,5.99533417,2400.5,2400.1,4.16648]
[1730762438389,0.15574728,2400.2,2400.1,4.16648]
[1730762438606,0.15574728,2400.2,2400.1,5.04587773]
[1730762438908,10.16128417,2400.5,2400.1,0.87939773]
[1730762439202,10.16128417,2400.5,2400.0,4.16663]
[1730762439406,10.16128417,2400.5,2400.0,8.3332]
[1730762439407,0.15589699,2400.4,2400.0,8.3332]
[1730762439707,0.15589699,2400.4,2400.0,4.16656]
[1730762440567,0.15589699,2400.4,2400.1,4.1664]
[1730762441777,0.15589699,2400.4,2400.2,4.16631]
[1730762441982,0.0594101,2400.6,2400.3,4.16614]
[1730762442218,0.0594101,2400.6,2400.4,8.33183]
[1730762442775,0.0594101,2400.6,2400.4,4.16587]
[1730762443103,0.0594101,2400.6,2400.5,4.16579]
[1730762443306,0.0594101,2400.6,2400.5,5.1575285]
[1730762443511,0.0594101,2400.6,2400.5,5.864326]
[1730762444317,0.0594101,2400.6,2400.5,8.864326]
[1730762446534,0.0594101,2400.6,2400.5,14.552245]
[1730762446739,0.0594101,2400.6,2400.5,13.74036956]
[1730762447584,0.789,2401.6,2400.5,12.95026956]
[1730762447801,4.95289,2401.6,2401.2,4.16452]
[1730762448181,0.789,2401.6,2400.8,4.08003876]
[1730762448425,0.789,2401.6,2401.2,4.16447]
[1730762448599,0.789,2401.6,2401.2,8.32896]
[1730762449425,0.789,2401.6,2401.2,4.16447]
[1730762449607,0.789,2401.6,2401.3,0.498147]
[1730762450014,0.789,2401.6,2401.3,4.662497]
[1730762450322,0.789,2401.6,2401.3,0.498147]
[1730762450682,4.95292,2401.6,2401.3,0.498147]
[1730762450887,0.789,2401.6,2401.3,0.498147]
[1730762451231,0.789,2401.6,2401.4,0.4662617]
[1730762452517,0.15636739,2401.5,2401.4,0.4662617]
[1730762453033,0.15636739,2401.5,2401.4,4.6304917]
[1730762453207,0.8276101,2401.8,2401.4,4.7137665]
[1730762453531,0.15636739,2401.5,2401.4,0.4662617]
[1730762453737,0.8276101,2401.8,2401.4,0.4662617]
[1730762453738,4.9912701,2401.8,2401.4,0.4662617]
[1730762453892,0.15636739,2401.5,2401.4,0.4662617]
[1730762454091,4.9912701,2401.8,2401.4,0.4662617]
[1730762454294,0.15636739,2401.5,2401.4,0.4662617]
[1730762454538,0.8276101,2401.8,2401.4,4.6304917]
[1730762454852,0.8276101,2401.8,2401.5,4.62699917]
[1730762455138,0.0594101,2401.8,2401.6,4.16385]
[1730762455426,0.0594101,2401.8,2401.7,4.16371]
[1730762455839,0.0594101,2401.8,2401.7,4.24697123]
[1730762456021,0.0594101,2401.8,2401.7,4.16371]
[1730762456194,0.0594101,2401.8,2401.7,5.11816092]
[1730762456922,0.0594101,2401.8,2401.7,5.20141888]
[1730762457107,0.0594101,2401.8,2401.7,9.28145764]
[1730762457440,0.0594101,2401.8,2401.7,12.95209968]
[1730762460097,0.0594101,2401.8,2401.7,13.50209968]
[1730762460308,4.2210101,2403.0,2401.7,12.74819968]
[1730762460309,0.0594101,2403.0,2401.7,12.74819968]
[1730762460618,0.15905207,2402.9,2402.6,4.16204]
[1730762460802,0.15905207,2402.9,2402.7,4.16197]
[1730762460998,0.15905207,2402.9,2402.8,4.16181]
[1730762461318,0.7521,2402.9,2402.5,4.1622]
[1730762461704,0.15905207,2402.8,2402.3,4.16263]
[1730762461904,0.15905207,2402.8,2402.3,4.16258]
[1730762462134,4.91384,2402.9,2402.3,4.16258]
[1730762462135,0.7521,2402.9,2402.5,4.16231]
[1730762462347,0.7521,2402.9,2402.4,0.494238]
[1730762462348,0.15905207,2402.7,2402.4,0.494238]
[1730762462615,0.15905207,2402.6,2402.4,4.16239]
[1730762462826,0.15905207,2402.6,2402.1,4.1629]
[1730762462827,4.93896,2402.6,2402.1,4.1629]
[1730762463158,0.15905207,2402.5,2402.2,4.1628]
[1730762463499,0.15905207,2402.5,2402.1,8.32578]
[1730762463812,0.15905207,2402.5,2402.1,4.16288]
[1730762464016,0.15905207,2402.5,2402.1,4.661708]
[1730762464216,0.15905207,2402.5,2402.1,4.661838]
[1730762464552,0.15905207,2402.5,2402.0,0.8254]
[1730762464553,0.15905207,2402.5,2402.4,4.1625]
[1730762464960,0.15905207,2402.5,2402.4,4.24574119]
[1730762465120,9.08075,2402.9,2402.4,4.16242]
[1730762465303,0.15905207,2402.5,2402.3,4.16267]
[1730762465624,4.162,2402.7,2402.2,4.16281]
[1730762465826,0.15905207,2402.4,2402.0,4.98851]
[1730762466024,4.92311,2402.5,2402.1,4.163]
[1730762466230,0.15922991,2402.3,2402.1,4.163]
[1730762466450,0.15922991,2402.3,2402.2,4.16285]
[1730762466745,0.7607,2402.5,2402.3,4.16265]
[1730762467611,0.15918724,2402.4,2402.3,4.16265]
[1730762467841,0.15918724,2402.4,2402.1,4.16289]
[1730762468020,0.15918724,2402.4,2402.2,4.16283]
[1730762468711,0.15918724,2402.4,2402.1,4.661799]
[1730762468914,0.15918724,2402.4,2402.0,4.9885]
[1730762469241,0.15918724,2402.4,2402.1,4.24625873]
[1730762470130,0.15918724,2402.4,2402.1,4.16301]
[1730762470330,0.15918724,2402.4,2402.0,4.98857]
[1730762470507,0.15918724,2402.4,2402.0,4.16317]
[1730762470862,0.15918724,2402.4,2402.1,4.16302]
[1730762471357,0.15918724,2402.4,2402.0,5.61798787]
[1730762471559,4.32169724,2402.4,2402.0,5.61798787]
[1730762471720,4.16298,2402.2,2401.7,8.32718]
[1730762471916,0.15918724,2402.4,2402.0,4.16302]
[1730762472157,0.7607,2402.5,2402.1,4.16296]
[1730762472483,4.92303,2402.5,2402.0,4.16313]
[1730762472749,0.7607,2402.5,2402.1,4.16298]
[1730762472952,4.92305,2402.5,2402.0,4.16313]
[1730762473260,4.92305,2402.5,2402.1,4.40843379]
[1730762473549,4.92305,2402.5,2402.1,4.16297]
[1730762474118,4.92305,2402.5,2402.0,4.579423]
[1730762474430,9.08551,2402.5,2402.1,0.245593]
[1730762474631,9.08548,2402.5,2402.0,4.579423]
[1730762474850,4.16252,2402.4,2402.1,0.24563869]
[1730762475025,4.92305,2402.5,2402.0,4.579423]
[1730762475246,4.92305,2402.5,2402.1,0.24566438]
[1730762475544,4.16258,2402.4,2401.9,4.16332]
[1730762475746,4.16275,2402.3,2402.0,0.24574531]
[1730762475922,4.16275,2402.3,2402.1,0.24574531]
[1730762476271,0.8144,2401.6,2401.4,0.40754174]
[1730762476467,0.8144,2401.6,2401.5,0.63954261]
[1730762476981,0.0594101,2403.0,2402.9,4.16163]